Cogmind - Beta 10.1 @@@ ROGUE MODE // 2020.10.22 @ 09:01:39 Player: Demise Result: Destroyed by 8R-AWN with 8R-AWN's Boregun Performance ------------- Evolutions (1) 500 Regions Visited (5) 1000 Robots Destroyed (122) 610 Value Destroyed (2865) 2865 Prototype IDs (27) 540 Alien Tech Used (0) 0 Bonus (531) 531 TOTAL SCORE: 6046 Bonus ------- High Alert Combat Kills 220 Follower Combat Kills 85 Aligned with FarCom 300 Friendly Fire -74 Cogmind --------- Core Integrity 0/400 Matter 175/300 Energy 106/280 System Corruption 1% Temperature Cool (8) Movement Walking (210) Ox3 Location -9/Exiles Parts ------- > --- POWER (1) -------- Cooled Ion Engine > --- PROPULSION (2) --- Aluminum Leg Aluminum Leg > --- UTILITY (4) ------ High-capacity Storage Unit Hardened Light Armor Plating Hardened Light Armor Plating Hardened Light Armor Plating > --- WEAPON (2) ------- High-powered Shotgun High-powered Shotgun > --- INVENTORY (12) --- Hardened Light Armor Plating Hardened Light Armor Plating Heavy Assault Rifle Mini Grenade Launcher Plasma Cutter Plasma Cutter Peak State ------------ > --- POWER ------------ Light Angular Momentum Engine > --- PROPULSION ------- Light Treads Armored Wheel > --- UTILITY ---------- Improved Heat Sink Large Storage Unit Large Storage Unit High-capacity Storage Unit > --- WEAPON ----------- Beam Rifle Beamcaster > --- INVENTORY -------- Light Treads Wheel Improved Hover Unit Improved Hover Unit Improved Hover Unit Large Storage Unit Large Storage Unit High-capacity Matter Pod Signal Interpreter Improved Signal Interpreter Improved Terrain Scanner Improved Targeting Computer Improved Targeting Computer Light Armor Plating Hacking Suite Beam Rifle Heavy Assault Rifle Heavy Assault Rifle Heavy Assault Rifle Rocket Launcher Datajack Mining Laser Plasma Cutter Plasma Cutter [Rating: 25] Favorites ----------- Power Light Angular Momentum Engine Engine Light Angular Momentum Engine Power Core Light Nuclear Core Propulsion Improved Aluminum Leg Treads Light Treads Leg Improved Aluminum Leg Wheel Armored Wheel Flight Unit Improved Flight Unit Utility Large Storage Unit Device Improved Heat Sink Storage Large Storage Unit Processor Transport Network Coupler Protection Light Armor Plating Weapon High-powered Shotgun Energy Gun Beam Rifle Ballistic Gun High-powered Shotgun Ballistic Cannon Light Cannon Launcher Grenade Launcher Special Weapon Plasma Cutter Build | -11 -10 -10 -9 -9 -9 ------- Run | Scr Mat Min Mat Min Exi Slots Evolved 2 | . . . 2 . . Power . | . . . . . . Propulsion . | . . . . . . Utility 2 | . . . 2 . . Weapon . | . . . . . . Parts Attached 104 | 3 26 8 42 10 15 Power 10 | . 4 1 2 2 1 Engine 5 | . . 1 2 1 1 Core 5 | . 4 . . 1 . Reactor . | . . . . . . Propulsion 34 | 2 8 . 14 8 2 Treads 17 | 2 4 . 11 . . Leg 13 | . 2 . 1 8 2 Wheel 3 | . 2 . 1 . . Hover . | . . . . . . Flight 1 | . . . 1 . . Utility 21 | 1 5 . 9 . 6 Device 4 | . 2 . 2 . . Storage 9 | 1 2 . 4 . 2 Processor 2 | . 1 . . . 1 Hackware . | . . . . . . Protection 6 | . . . 3 . 3 Artifact . | . . . . . . Weapon 39 | . 9 7 17 . 6 Energy Gun 14 | . 3 2 9 . . Energy Cannon . | . . . . . . Ballistic Gun 15 | . 2 1 8 . 4 Ballistic Cannon 2 | . . 2 . . . Launcher 1 | . 1 . . . . Special Weapon 7 | . 3 2 . . 2 Impact Weapon . | . . . . . . Slashing Weapon . | . . . . . . Piercing Weapon . | . . . . . . Special Melee Weapon . | . . . . . . Unidentified Prototypes 4 | . . . 3 1 . Parts Lost 24 | . 5 1 10 2 6 Power 2 | . . . 1 . 1 Propulsion 7 | . 1 . 2 2 2 Utility 1 | . . . . . 1 Weapon 14 | . 4 1 7 . 2 Highest Loss Streak 6 | . 3 1 3 2 6 Average Slot Usage (%) 96 | . 95 100 99 98 89 Engine 9 | . 4 10 11 8 10 Core 2 | . 8 3 . 2 . Treads 8 | . 18 . 16 1 . Leg 13 | . 9 28 2 19 21 Wheel 1 | . . . 3 . . Device 2 | . 5 . 4 . . Storage 33 | . 17 28 37 44 31 Processor 1 | . 4 . . . 1 Protection 1 | . . . 2 . 2 Energy Gun 6 | . 16 10 7 . . Ballistic Gun 14 | . 4 8 13 22 20 Ballistic Cannon 1 | . . 8 . . . Naked Turns . | . . . . . . Heaviest Build 110 | 16 59 63 95 94 110 Greatest Support 43 | 40 40 26 43 23 23 Greatest Overweight (x) 30 | . 3 2 6 30 5 Average Overweight (x) 2 | . . 2 3 4 3 Largest Inventory Capacity 32 | 8 18 18 30 30 32 Average Capacity 23 | 7 13 18 26 30 24 Most Carried 30 | 8 18 18 30 30 30 Average Carried 22 | 7 12 17 25 29 19 Final Capacity 30 | 8 18 18 30 30 12 Final Carried 30 | 8 18 18 30 30 6 Class Distribution -------------------- 53% | Hauler-Mutant 30% | Mutant 15% | Scavenger-Mutant Dominant Class ---------------- Mutant | -10/Materials Mutant | -10/Mines Hauler-Mutant | -9/Materials Hauler-Mutant | -9/Mines Hauler-Mutant | -9/Exiles Resources | -11 -10 -10 -9 -9 -9 ----------- Run | Scr Mat Min Mat Min Exi Matter Collected 2489 | 230 583 114 994 468 100 Remotely . | . . . . . . Salvage Created 3932 | 231 714 348 2136 494 9 Parts 261 | 19 45 20 131 46 . Haulers Intercepted 7 | . 2 . 5 . . Recyclers Shooed . | . . . . . . Parts Field Recycled . | . . . . . . Retrieved Matter . | . . . . . . Parts Self-Destructed . | . . . . . . Prevented . | . . . . . . Kills | -11 -10 -10 -9 -9 -9 ------- Run | Scr Mat Min Mat Min Exi Combat Hostiles Destroyed 97 | . 16 8 44 28 1 Melee 2 | . 1 . 1 . . Guns 90 | . 12 7 42 28 1 Cannons 3 | . 1 1 1 . . AOE 2 | . 2 . . . . Classes Destroyed 11 | 3 5 1 1 . 1 Worker 3 | 2 . . 1 . . Tunneler 5 | 5 . . . . . Hauler 7 | . 2 . 5 . . Recycler 3 | 1 . . 2 . . Operator 2 | . 1 . 1 . . Watcher 5 | . 2 . 3 . . Swarmer 36 | . 3 1 11 21 . Grunt 48 | . 13 5 23 7 . Duelist 2 | . . . 2 . . Sentry 10 | . . 2 8 . . Assembled 1 | . . . . . 1 Best Kill Streak 6 | 4 3 3 5 6 1 Combat Bots Only 6 | . 3 3 5 6 1 Max Kills in Single Turn 2 | 1 2 1 2 2 1 Gunslinging 1 | . . . 1 1 . Exploded 2 | . 2 . . . . Melee 1 | . 1 . 1 . . Uniques/NPCs Destroyed . | . . . . . . Combat | -11 -10 -10 -9 -9 -9 -------- Run | Scr Mat Min Mat Min Exi Damage Taken 4535 | . 823 267 2097 694 654 Core 588 | . 144 24 193 98 129 Absorbed by Shields . | . . . . . . Core Remaining (%) 66 | 100 . 32 . . . Volleys Fired 361 | 14 102 21 166 46 12 Largest 2 | 2 2 2 2 2 2 Hottest 131 | 90 120 112 131 50 50 Shots Fired 661 | 28 153 38 326 92 24 Gun 634 | 28 139 31 324 92 20 Cannon 6 | . . 4 2 . . Launcher 2 | . 2 . . . . Special 19 | . 12 3 . . 4 Kinetic 404 | . 59 10 223 92 20 Thermal 255 | 28 92 28 103 . 4 Explosive 2 | . 2 . . . . Electromagnetic . | . . . . . . Robot Hit Streak 24 | 6 11 21 24 7 9 Robot Miss Streak 6 | 2 3 3 4 6 3 Penetration Max . | . . . . . . Secondary Targets 14 | . 1 1 2 9 1 Max Gunslinging Chain 1 | . 1 1 1 1 1 Shots Hit Robots 445 | 18 106 26 214 62 19 Core Hits 190 | 9 39 14 88 36 4 Critical Hits 4 | . . 1 1 1 1 Critical Kills 1 | . . . . 1 . Critical Parts Destroyed 2 | . . 1 1 . . Melee Attacks . | . . . . . . Impact . | . . . . . . Slashing . | . . . . . . Piercing . | . . . . . . Sneak Attacks . | . . . . . . Combat Hostiles . | . . . . . . Follow-up Attacks . | . . . . . . Damage Inflicted 6403 | 190 1260 383 3178 1092 300 Guns 6043 | 190 985 360 3129 1092 287 Cannons 58 | . . 19 39 . . Explosions 220 | . 220 . . . . Melee . | . . . . . . Ramming 24 | . 10 4 10 . . Kinetic 3991 | . 350 111 2151 1092 287 Thermal 2168 | 190 680 268 1017 . 13 Explosive 220 | . 220 . . . . Electromagnetic . | . . . . . . Impact . | . . . . . . Slashing . | . . . . . . Piercing . | . . . . . . Highest Corruption 1 | . . . 1 1 1 Average Corruption 1 | . . . 1 1 1 Corruption Purged . | . . . . . . Effects 20 | . . . 12 5 3 Message Errors 8 | . . . 4 4 . Energy Discharges 2 | . . . 1 1 . Data Loss (minor) 7 | . . . 4 . 3 Targeting Errors 3 | . . . 3 . . Overload Shots . | . . . . . . Overflow Damage 6 | . 6 . . . . Projectiles . | . . . . . . Explosions 6 | . 6 . . . . Melee . | . . . . . . Knockbacks . | . . . . . . Impact . | . . . . . . Kinetic . | . . . . . . Secondary . | . . . . . . Self-Inflicted Damage 11 | . 9 2 . . . Shots 1 | . 1 . . . . Rammed 6 | . 3 1 2 . . Targets Rammed 6 | . 3 1 2 . . Kicked . | . . . . . . Crushed . | . . . . . . Highest Temperature 335 | 240 234 335 162 3 15 Average Temperature 53 | 89 54 85 35 3 6 Received Heat Transfer 1329 | . 363 132 696 138 . Effects 3 | . . 3 . . . Shutdowns 1 | . . 1 . . . Energy Bleed 1 | . . 1 . . . Damage (minor) 1 | . . 1 . . . Siege Activations . | . . . . . . Robots Corrupted . | . . . . . . Combat Hostiles . | . . . . . . Parts Fried . | . . . . . . Impact Corruptions . | . . . . . . Robots Melted . | . . . . . . Combat Hostiles . | . . . . . . Parts Melted 12 | 1 4 1 6 . . Heat Transferred 5555 | 520 1944 679 2357 . 55 Parts Sabotaged . | . . . . . . Parts Stolen . | . . . . . . Parts Stripped . | . . . . . . Power Chain Reactions . | . . . . . . Missiles Intercepted . | . . . . . . Alert | -11 -10 -10 -9 -9 -9 ------- Run | Scr Mat Min Mat Min Exi Peak Influence 719 | 40 195 132 663 719 . Initial 244 | . 26 22 21 244 . Average 285 | 22 76 53 385 462 . Maximum Alert Level 3 | . . . 2 3 . Low Security (%) 43 | 100 100 100 17 . . Level 1 19 | . . . 34 27 . Level 2 36 | . . . 48 72 . Level 3 . | . . . . . . Level 4 . | . . . . . . Level 5 . | . . . . . . High Security . | . . . . . . Max Security . | . . . . . . Squads Dispatched 13 | . 5 . 8 . . Investigation 6 | . 2 . 4 . . Extermination . | . . . . . . Reinforcement 7 | . 3 . 4 . . Assault . | . . . . . . Garrison . | . . . . . . Intercept . | . . . . . . Construction Impeded 1 | . . . 1 . . Haulers Reinforced . | . . . . . . Stealth | -11 -10 -10 -9 -9 -9 --------- Run | Scr Mat Min Mat Min Exi Distress Signals 6 | . 1 . 5 . . Communications Jammed . | . . . . . . Distress Signals . | . . . . . . Times Spotted 149 | . 34 10 72 31 2 Peak Tracking Total 5 | . 3 2 5 4 4 Tactical Retreats 7 | . 1 . 6 . . Traps | -11 -10 -10 -9 -9 -9 ------- Run | Scr Mat Min Mat Min Exi Traps Triggered 6 | . 4 . 2 . . Indirectly . | . . . . . . Trap Hack Attempts . | . . . . . . Triggered . | . . . . . . Disarmed . | . . . . . . Reprogrammed . | . . . . . . Reused 2 | . . . . 1 1 Traps Extracted . | . . . . . . Installed 4 | . . . . 1 3 Triggered 1 | . . . . 1 . Machines | -11 -10 -10 -9 -9 -9 ---------- Run | Scr Mat Min Mat Min Exi Machines Disabled 4 | . 1 . 1 1 1 Max in Single Turn 1 | . 1 . 1 1 1 Machines Sabotaged . | . . . . . . Garrisons Compromised . | . . . . . . Overloaded Fab Kills . | . . . . . . Fab Network Shutdowns . | . . . . . . Hacking | -11 -10 -10 -9 -9 -9 --------- Run | Scr Mat Min Mat Min Exi Machines Accessed 17 | . 4 . 10 1 2 Terminals 12 | . 3 . 8 1 . Fabricators . | . . . . . . Repair Stations 1 | . 1 . . . . Recycling Units 1 | . . . 1 . . Scanalyzers 1 | . . . 1 . . Garrison Access . | . . . . . . Total Hacks 48 | . 13 . 30 3 2 Successful 27 | . 9 . 16 . 2 Failed 20 | . 4 . 13 3 . Catastrophic 2 | . 1 . 1 . . Database Lockouts 1 | . . . 1 . . Manual 36 | . 10 . 22 3 1 Terminals 37 | . 10 . 24 3 . Fabricators . | . . . . . . Repair Stations 3 | . 3 . . . . Recycling Units 1 | . . . 1 . . Scanalyzers 5 | . . . 5 . . Garrison Access . | . . . . . . Terminal Hacks 8 | . 2 . 4 . 2 Record 1 | . . . . . 1 Part Schematic 1 | . . . 1 . . Robot Analysis 1 | . 1 . . . . Branch Access Points 1 | . . . 1 . . Locate Traps 1 | . . . 1 . . Recall Investigation 1 | . 1 . . . . Zone Layout 1 | . . . 1 . . EX-Prototype ID Bank 1 | . . . . . 1 Fabricator Hacks . | . . . . . . Repair Station Hacks 3 | . 3 . . . . Scan Component 1 | . 1 . . . . Repair 1 | . 1 . . . . Refit 1 | . 1 . . . . Recycling Unit Hacks 1 | . . . 1 . . Report Inventory 1 | . . . 1 . . Scanalyzer 5 | . . . 5 . . Insert Component 2 | . . . 2 . . Analyze 3 | . . . 3 . . Garrison Access Hacks . | . . . . . . Unauthorized Hacks 10 | . 4 . 6 . . Terminals 10 | . 4 . 6 . . Track 1 | . 1 . . . . Botnet 8 | . 2 . 6 . . Operators 1 | . 1 . . . . Fabricators . | . . . . . . Repair Stations . | . . . . . . Recycling Units . | . . . . . . Scanalyzers . | . . . . . . Garrison Access . | . . . . . . Data Cores Recovered . | . . . . . . Used . | . . . . . . Hacking Detections 13 | . 4 . 8 1 . Full Trace Events 4 | . 1 . 3 . . Feedback Events . | . . . . . . Feedback Blocked . | . . . . . . Robot Schematics Acquired . | . . . . . . Robots Built . | . . . . . . Matter . | . . . . . . Time . | . . . . . . Total Robot Build Rating . | . . . . . . Part Schematics Acquired 3 | . . . 3 . . Parts Built . | . . . . . . Matter . | . . . . . . Time . | . . . . . . Total Part Build Rating . | . . . . . . Parts Repaired 1 | . 1 . . . . Time 38 | . 38 . . . . Parts Recycled . | . . . . . . Recycled Matter . | . . . . . . Retrieved Matter . | . . . . . . Retrieved Components . | . . . . . . Parts Scanalyzed 2 | . . . 2 . . Part Schematics Acquired 2 | . . . 2 . . Parts Damaged . | . . . . . . Bothacking | -11 -10 -10 -9 -9 -9 ------------ Run | Scr Mat Min Mat Min Exi Used RIF Installer . | . . . . . . Robots Hacked . | . . . . . . Non-combat . | . . . . . . Combat . | . . . . . . Robot Hacks Applied . | . . . . . . Relay Couplers Released . | . . . . . . Robots Rewired . | . . . . . . Allies Hacked . | . . . . . . Hacks Repelled . | . . . . . . Allies | -11 -10 -10 -9 -9 -9 -------- Run | Scr Mat Min Mat Min Exi Total Allies 5 | . . 2 . 3 . Largest Group 3 | . . 2 2 3 3 Highest-Rated Group 47 | . . 47 47 40 40 Highest-Rated Ally 31 | . . 31 31 16 16 Total Orders 1 | . . . . . 1 STAY 1 | . . . . . 1 Ally Attacks 23 | . . 4 10 . 9 Total Damage 282 | . . 85 168 . 29 Kills 4 | . . 2 2 . . Allies Corrupted . | . . . . . . Allies Melted . | . . . . . . Intel | -11 -10 -10 -9 -9 -9 ------- Run | Scr Mat Min Mat Min Exi Robot Analysis Total 1 | . 1 . . . . Derelict Logs Recovered 4 | . . 1 . 3 . Drone Launches . | . . . . . . Drone Recoveries . | . . . . . . Exploration | -11 -10 -10 -9 -9 -9 ------------- Run | Scr Mat Min Mat Min Exi Turns Passed 8852 | 146 1435 1176 2873 1821 1401 Spaces Moved 3546 | 60 643 595 1046 641 561 Core 8 | . . . . 8 . Treads 1425 | 50 410 . 911 54 . Legs 2020 | 10 232 595 43 579 561 Wheels 93 | . 1 . 92 . . Hover . | . . . . . . Flight . | . . . . . . Fastest Speed 100 | 120 100 180 140 240 180 Average Speed 206 | 153 165 180 209 257 227 Slowest Speed 1550 | 160 210 180 300 1550 270 Overloaded Moves . | . . . . . . Propulsion Burnouts . | . . . . . . Robots Hopped . | . . . . . . Cave-ins Triggered . | . . . . . . Exploration Rate (%) 71 | 3 84 99 84 93 68 Regions Visited 5 Branch Regions 3 Pre-discovered Areas 5 | . . . . 4 1 Known Exits Taken 1 | . . . 1 . . Unknown Exits Taken 4 | 1 1 1 . 1 . Scrap Searched 2 | . . 1 . 1 . Spaces Dug 6 | . 3 3 . . . Terrain Destroyed 17 | . 14 3 . . . Melee . | . . . . . . Projectile 6 | . 3 3 . . . AOE 11 | . 11 . . . . Terrain Rammed . | . . . . . . Walls Destroyed . | . . . . . . Machines Disabled . | . . . . . . Actions | -11 -10 -10 -9 -9 -9 --------- Run | Scr Mat Min Mat Min Exi Total 4447 | 88 870 658 1423 727 681 Wait 189 | . 45 23 84 13 24 Move 3541 | 59 642 594 1045 640 561 Hop . | . . . . . . Pick Up 104 | 6 25 4 44 5 20 Fast Attach 41 | 2 14 4 14 4 3 Attach 31 | 1 8 . 12 1 9 Detach 14 | 1 6 . 3 . 4 Swap 32 | . 4 4 16 5 3 Drop 124 | 5 21 7 37 12 42 Fire 361 | 14 102 21 166 46 12 Melee . | . . . . . . Ram . | . . . . . . Kick 1 | . . 1 . . . Crush 5 | . 3 . 2 . . Escape Stasis . | . . . . . . Rewire . | . . . . . . Trap 4 | . . . . 1 3 Miscellaneous . | . . . . . . Route ------- -11/Scrapyard -10/Materials (discovered 3 exits: *Mat x2 / [*Min]) -10/Mines (discovered 2 exits: *Mat x2) -9/Materials (discovered 4 exits: [*Mat x2] / *Min x2) -9/Mines (discovered 3 exits: [*Mat x2] / *Exi) -9/Exiles (discovered 1 exit: [*Min]) History --------- Turn | Location | Event 11 | -11/Scrapyard | Discovered new exit (range 1) 147 | -11/Scrapyard | Entered Materials 318 | -10/Materials | Build established: Mutant 819 | -10/Materials | Repaired Lgt. Nuclear Core 857 | -10/Materials | Lost 3 parts (1n2w) 870 | -10/Materials | Discovered new exit (range 9) 1016 | -10/Materials | Discovered new exit (range 15) 1053 | -10/Materials | Core integrity fell below 50% 1428 | -10/Materials | Discovered new exit (range 15) 1582 | -10/Materials | Entered Mines 1591 | -10/Mines | Learned Materials stockpile data 2261 | -10/Mines | Discovered new exit (range 10) 2262 | -10/Mines | Received a Rocket Launcher from a helpful Derelict 2358 | -10/Mines | Discovered new exit (range 15) 2758 | -10/Mines | Entered Materials 2758 | -9/Materials | Accompanied by 2 allies 2758 | -9/Materials | Evolved 2 slots: Utility x2 2763 | -9/Materials | Led the pair of lost Derelicts to an unsafe place 2981 | -9/Materials | Identified exit to Mines 3132 | -9/Materials | Build established: Scavenger-Mutant 3213 | -9/Materials | Discovered new exit (range 16) 4315 | -9/Materials | Build established: Hauler-Mutant 4872 | -9/Materials | Central database locked down 5162 | -9/Materials | Lost 3 parts (1n2w) 5346 | -9/Materials | Discovered new exit (range 6) 5631 | -9/Materials | Entered Mines 5638 | -9/Mines | Core integrity fell below 50% 5710 | -9/Mines | Learned location of Zion (-7) 5710 | -9/Mines | Discovered new exit (range 3) 6057 | -9/Mines | Discovered new exit (range 5) 6157 | -9/Mines | Found a hidden stash of uninstalled traps 7035 | -9/Mines | Assisted by bots powering up and referring to "LRC-V3" 7245 | -9/Mines | Learned location of Storage (-7) 7436 | -9/Mines | Deemed a non-threat by the Exiles lab entrance 7436 | -9/Mines | Discovered new exit (range 5) 7452 | -9/Mines | Entered Exiles 7452 | -9/Exiles | Accompanied by 3 allies 7484 | -9/Exiles | Discovered new exit (range 15) 7564 | -9/Exiles | Met 8R-AWN 7632 | -9/Exiles | Met EX-HEX 7921 | -9/Exiles | Met EX-DEC 8307 | -9/Exiles | Met EX-BIN 8333 | -9/Exiles | Aligned with FarCom system 8336 | -9/Exiles | Given EX-Vault access code 8391 | -9/Exiles | Opened EX-Vault 8403 | -9/Exiles | Found Superbattery 8409 | -9/Exiles | Found Firepult 8417 | -9/Exiles | Found PSU Rigger 8471 | -9/Exiles | Warned to stay clear of 0b10 Research branches 8802 | -9/Exiles | Attacked by the Exiles 8814 | -9/Exiles | Core integrity fell below 20% 8853 | -9/Exiles | Destroyed by 8R-AWN with 8R-AWN's Boregun Last Messages --------------- 08840_ Penetrated by HV Slug. 08840_ HV Slug penetrates Wall. 08843_ Penetrated by HV Slug. 08843_ Critical hit. 08843_ HV Slug penetrates Wall. 08843_ Penetrated by HV Slug. 08843_ Imp. Targeting Computer destroyed. 08843_ HV Slug penetrates Wall. 08845_ Penetrated by HV Slug. 08845_ HV Slug penetrates Wall. 08845_ Penetrated by HV Slug. 08845_ HV Slug penetrates Wall. 08845_ Acquired Aluminum Leg. 08849_ HV Slug penetrates Wall. 08849_ Penetrated by HV Slug. 08849_ Critical hit. 08849_ Cld. Ion Engine destroyed. 08849_ HV Slug penetrates Wall. 08851_ System corrupted: Component data lost. 08853_ Penetrated by HV Slug. Map ----- +----------------------------------------------------+ | """#?????????????????????????????????????????????? | | """#?????????????????????????????????????????????? | | """#?????????????????????????????????????????????? | | """#?????????????????????????????????????????????? | | """#?????????????????????????????????????????????? | | """#?????????????????????????????????????????????? | | """#?????????????????????????????????????????????? | | """#?????????????????????????????????????????????? | | """""????????????????????????????????????????????? | | """#?????????????????????????????????????????????? | | """"?????????????????????????????????????????????? | | #?????????????????????????????????????????????? | | """#?????????????????????????????????????????????? | | ####????????????????????????????????????????????## | | ??????????????????????????????????????????????## | | ?????????????????????????????????????????????## | | ?????????????????????????????????????????????# < | | #########????????????????????????????????????# | | """""""""##??????????????????????????????????# | | " """ """"##????????????????????????????????##| # | | "" " #???????????????????????????????## !=!# | | " """#???????####????????????????????# !===! | | " "#???????# #####???????????????# !!=! | | " "##???##### ;;*[[#??????????????##!!!/! | | """ ;% g%#?????????????## !!!!# | | """#?####### !@=##????????????# !!]## | | "#????### [= ###????????### ##? | | !!! ##???# % ########## #?? | | !!! ##?## #""""## ##?? | | !!! ### ##?? | | ## #?? | | #### ##? | | ""#?#""""";;## ## | | #" "##?####### ##### | | ######?????????##???##### | | ##???????????????????????### | | " ##??????????????????????????### | | """^*^*^* ""#?????????????????????????????### | | ""#" "##??????????????????????????????#" | | """##"""""""##???????????????????????????????#### | | """###########???????????????????????????????????# | | ####?????????????????????????????????????????????# | | ?????????????????????????????????????????????????? | | ?????????????????????????????????????????????????? | | ?????????????????????????????????????????????????? | | ?????????????????????????????????????????????????? | | ?????????????????????????????????????????????????? | | ?????????????????????????????????????????????????? | | ?????????????????????????????????????????????????? | | ?????????????????????????????????????????????????? | +----------------------------------------------------+ Best States ------------- Heat Dissipation 42 Energy Generation 18 Energy Capacity 280 Matter Stores 300 Matter Capacity 300 Sight Range 16 Terrain Scan Range 16 Terrain Scan Density 10 Armor Coverage 450 Evasion (%) 40 Targeting Accuracy 6 Recoil Reduction 2 Item Schematics ----------------- Hcp. Storage Unit | -9/Materials | Hacked Lgt. Armor Plating | -9/Materials | Scanalyzed Plasma Cutter | -9/Materials | Scanalyzed Robot Schematics ------------------ None Fabricated ------------ Nothing Alien Tech Used ----------------- None Achievements -------------- None Challenges ------------ None Game ------ Seed LayeredCouplerPod Manual? 0 Play Time 01:04:57 Cumulative 32.6 hours Start 2020.10.22 @ 07:58:56 End 2020.10.22 @ 09:01:39 Sessions 1 Manual Loads 0 Difficulty Rogue Special Mode None Game No. 30 Rogue 30 Adventurer 0 Explorer 0 Win Type - Total 0 Types 0/0/0/0/0/0/0/0/0 Lore% 38 Gallery% 39 Achievement% 48 Wizard Run 0 Options --------- ASCII 0 Keyboard 1 Movement Numpad Keybinds 0 Fullscreen 1 Font 12/Terminus Map View 83x54 Tactical HUD 1 Map Filters NONE Filters NONE Steam 1 RUN: ffcb3688-f956-478b-884a-f7588cd48c9b